{"text_format":"1","workbook":"xlsx","n_sheets":4,"sheets":["Turnier","Spielplan Für Halle","Veranstalter","Vereinskürzel"],"not_rendered":{"charts":0,"images":0,"macros":1,"external_links":0,"defined_names":1,"comments":0,"pivot_tables":0},"unopened":[],"bounds":{"document_bytes":16777216,"sheet_cells":100000,"rows_first":2000,"rows_last":500,"rows_between":2000,"halvings":0,"cell_chars":16384,"cell_head_chars":4096},"cells_cut":0,"cells_raw":0,"read":"whole","date_system":"1900"}

{"sheet":"Turnier","index":0,"n_rows":54,"n_cols":53,"rows_kept":54,"cut":false,"hidden":false,"merged":[[16,10,16,12],[39,18,40,18],[39,19,40,19],[42,18,43,18],[42,19,43,19],[28,18,29,18],[28,19,29,19],[31,18,32,18],[31,19,32,19],[36,18,37,18],[36,19,37,19],[17,10,17,12],[18,10,18,12],[24,10,24,12],[42,9,43,9],[42,10,43,10],[42,11,43,11],[53,1,53,4],[46,1,46,2],[46,3,46,4],[48,1,48,4],[49,1,49,4],[50,1,50,4],[51,1,51,4],[52,1,52,4],[36,9,37,9],[36,10,37,10],[36,11,37,11],[39,9,40,9],[39,10,40,10],[39,11,40,11],[42,0,43,0],[42,1,42,3],[42,4,42,8],[43,1,43,3],[43,4,43,8],[39,0,40,0],[39,1,39,3],[39,4,39,8],[40,1,40,3],[40,4,40,8],[36,0,37,0],[36,1,36,3],[36,4,36,8],[37,1,37,3],[37,4,37,8],[28,0,29,0],[29,1,29,3],[29,4,29,8],[31,0,32,0],[31,1,31,3],[31,4,31,8],[32,1,32,3],[32,4,32,8],[28,4,28,8],[18,1,18,2],[19,1,19,2],[17,3,17,4],[22,10,22,12],[23,10,23,12],[18,3,18,4],[19,3,19,4],[17,1,17,2],[31,9,32,9],[31,10,32,10],[31,11,32,11],[28,1,28,3],[28,9,29,9],[28,11,29,11],[28,10,29,10],[2,6,2,8],[14,3,14,4],[14,1,14,2],[15,1,15,2],[16,1,16,2],[15,3,15,4],[16,3,16,4],[2,9,2,11],[2,12,2,13],[9,0,9,3],[10,0,10,3],[0,0,0,16],[2,14,2,16],[1,0,1,2],[2,0,2,2],[1,3,1,16],[7,0,7,3],[8,0,8,3],[8,10,8,15],[9,10,9,15],[10,10,10,15],[7,10,7,15],[2,3,2,5]]}
["Kleinfeldturnier"]
["Veranstalter:",null,null,null,null,null,null,null,null,null,null,null,null,null,null,null,null,null,null,null,null,null,null,null,null,null,null,null,null,null,null,null,null,null,null,null,null,null,null,null,null,null,null,null,null,null,null,null,null,null,null,{"$f":"IF(BQ1048564=2,AZ1048564,BC1048564)","v":0},{"$f":"IF(BS1048563=2,BA1048563,BD1048563)","v":0}]
["Datum:",null,null,null,null,null,"Bewerb:",null,null,null,null,null,"KAT: "]
["Modus:",null,"U11 / U12 jeweils 2 Sätze bis 20 / U13 - 2 Sätze bis 25"]
[null,null,"Alle Sätze: Auf 2 Punkte Unterschied"]
[]
[]
["Gruppe A",null,null,null,null,null,null,null,null,null,"Gruppe B",null,null,null,null,null,null,null,null,"Gruppe A","P","+","-","Koeff.",null,null,"Gruppe B","P","+","-","Koeff."]
[null,null,null,null,null,null,null,null,null,null,null,null,null,null,null,null,null,null,{"$f":"IF(X9>X11,1,0)+IF(X9>X10,1,0)","v":0},null,null,null,null,null,3,{"$f":"IF(AE9>AE11,1,0)+IF(AE9>AE10,1,0)","v":0},null,null,null,null,null,3]
[null,null,null,null,null,null,null,null,null,null,null,null,null,null,null,null,null,null,{"$f":"IF(X10>X9,1,0)+IF(X10>X11,1,0)","v":0},null,null,null,null,null,2,{"$f":"IF(AE10>AE9,1,0)+IF(AE10>AE11,1,0)","v":0},null,null,null,null,null,2]
[null,null,null,null,null,null,null,null,null,null,null,null,null,null,null,null,null,null,{"$f":"IF(X11>X9,1,0)+IF(X11>X10,1,0)","v":0},null,null,null,null,null,1,{"$f":"IF(AE11>AE9,1,0)+IF(AE11>AE10,1,0)","v":0},null,null,null,null,null,1]
[]
["Gruppenspiele:",null,null,null,null,null,null,null,null,null,"Endtabelle Gruppen"]
[null,null,null,null,null,"Spielpunkte"]
[1,null,null,null,null,null,":",null,null,null,null,null,null,null,null,null,null,null,{"$f":"IF(F15=0,0,IF(F15>H15,2,IF(F15<H15,0,1)))","v":0},{"$f":"IF(H15=0,0,IF(H15>F15,2,IF(H15<F15,0,1)))","v":0}]
[2,null,null,null,null,null,":",null,null,null,"Gruppe A",null,null,"P","Sp+","Sp-","Diff",null,{"$f":"IF(F16=0,0,IF(F16>H16,2,IF(F16<H16,0,1)))","v":0},{"$f":"IF(H16=0,0,IF(H16>F16,2,IF(H16<F16,0,1)))","v":0}]
[1,null,null,null,null,null,":",null,null,1,null,null,null,null,null,null,null,null,0,0]
[2,null,null,null,null,null,":",null,null,2,null,null,null,null,null,null,null,null,0,0]
[1,null,null,null,null,null,":",null,null,3,null,null,null,null,null,null,null,null,0,0]
[2,null,null,null,null,null,":",null,null,null,null,null,null,null,null,null,null,null,0,0]
[null,null,null,null,null,{"$f":"A21&\" \"&B21&D21&E21","v":" "}]
[null,null,null,null,null," ",null,null,null,null,"Gruppe B",null,null,"P","Sp+","Sp-","Diff"]
[null,null,null,null,null," ",null,null,null,1]
[null,null,null,null,null," ",null,null,null,2]
[null,null,null,null,null," ",null,null,null,3]
[null,null,null,null,null," "]
[null,"Kreuzspiele: "]
[null,null,null,null,null,null,null,null,null,null,"Spielpunkte"]
["1. SF",null,null,null,null,null,null,null,null,null,":",null,null,null,null,null,null,null,{"$f":"IF(J29=0,0,IF(J29>L29,2,IF(J29<L29,0,1)))","v":0},{"$f":"IF(L29=0,0,IF(L29>J29,2,IF(L29<J29,0,1)))","v":0}]
[null,"1. Gruppe A",null,null,"2. Gruppe B"]
[]
["2.SF",null,null,null,null,null,null,null,null,null,":",null,null,null,null,null,null,null,{"$f":"IF(J32=0,0,IF(J32>L32,2,IF(J32<L32,0,1)))","v":0},{"$f":"IF(L32=0,0,IF(L32>J32,2,IF(L32<J32,0,1)))","v":0}]
[null,"1. Gruppe B",null,null,"2. Gruppe A"]
[]
[null,"Platzierungsspiele"]
[]
["PL 5",null,null,null,null,null,null,null,null,null,":",null,null,null,null,null,null,null,{"$f":"IF(J37=0,0,IF(J37>L37,2,IF(J37<L37,0.1)))","v":0},{"$f":"IF(L37=0,0,IF(L37>J37,2,IF(L37<J37,0,1)))","v":0}]
[null,"3. Gruppe A",null,null,"3. Gruppe B"]
[]
["PL 3",null,null,null,null,null,null,null,null,null,":",null,null,null,null,null,null,null,{"$f":"IF(J40=0,0,IF(J40>L40,2,IF(J40<L40,0,1)))","v":0},{"$f":"IF(L40=0,0,IF(L40>J40,2,IF(L40<J40,0,1)))","v":0}]
[null,"Verlierer SF 1",null,null,"Verlierer SF 2"]
[]
["PL 1",null,null,null,null,null,null,null,null,null,":",null,null,null,null,null,null,null,{"$f":"IF(J43=0,0,IF(J43>L43,2,IF(J43<L43,0,1)))","v":0},{"$f":"IF(L43=0,0,IF(L43>J43,2,IF(L43<J43,0,1)))","v":0}]
[null,"Sieger SF 1",null,null,"Sieger SF 2"]
[]
[]
[null,"Endstand"]
[]
[1]
[2]
[3]
[4]
[5]
[6]

{"sheet":"Spielplan Für Halle","index":1,"n_rows":46,"n_cols":11,"rows_kept":46,"cut":false,"hidden":false,"merged":[[0,0,0,11],[11,1,11,2],[11,3,11,4],[2,9,2,11],[1,2,1,11],[2,2,2,7],[5,0,5,2],[6,0,6,2],[7,0,7,2],[8,0,8,2],[5,5,5,8],[6,5,6,8],[7,5,7,8],[8,5,8,8],[13,10,13,11],[12,1,12,2],[14,10,14,11],[13,3,13,4],[12,3,12,4],[13,1,13,2],[23,0,24,0],[23,1,23,3],[20,0,21,0],[14,1,14,2],[14,3,14,4],[23,4,23,8],[15,1,15,2],[15,3,15,4],[15,10,15,11],[16,1,16,2],[16,3,16,4],[16,10,16,11],[24,1,24,3],[23,9,24,9],[20,11,21,11],[21,1,21,3],[21,4,21,8],[20,1,20,3],[20,4,20,8],[20,9,21,9],[20,10,21,10],[23,11,24,11],[24,4,24,8],[23,10,24,10],[28,0,29,0],[28,1,28,3],[28,4,28,8],[28,9,29,9],[31,0,32,0],[31,1,31,3],[31,4,31,8],[31,9,32,9],[29,1,29,3],[34,0,35,0],[34,1,34,3],[34,4,34,8],[34,9,35,9],[34,11,35,11],[35,1,35,3],[35,4,35,8],[34,10,35,10],[31,11,32,11],[32,1,32,3],[32,4,32,8],[28,11,29,11],[28,10,29,10],[31,10,32,10],[29,4,29,8],[37,1,37,2],[37,3,37,4],[38,1,38,2],[38,3,38,4],[45,1,45,4],[40,1,40,4],[41,1,41,4],[42,1,42,4],[44,1,44,4],[43,1,43,4]]}
[{"$f":"A21","v":"1. SF"}]
[{"$f":"A22","v":0},{"$f":"VLOOKUP(A2,$O$8:$P$50,2,FALSE)","v":{"$error":"#N/A"}},{"$f":"B2&\" \"&B22&D22&E22","v":{"$error":"#N/A"}}]
[{"$f":"A23","v":0},{"$f":"VLOOKUP(A3,$O$8:$P$50,2,FALSE)","v":{"$error":"#N/A"}},{"$f":"B3&\" \"&B23&D23&E23","v":{"$error":"#N/A"}},null,null,null,null,null,"KAT: ",{"$f":"Turnier!O3","v":0}]
[{"$f":"A24","v":"2.SF"},{"$f":"VLOOKUP(A4,$O$8:$P$50,2,FALSE)","v":{"$error":"#N/A"}},{"$f":"B4&\" \"&B24&D24&E24","v":{"$error":"#N/A"}}]
[{"$f":"A25","v":0},{"$f":"VLOOKUP(A5,$O$8:$P$50,2,FALSE)","v":{"$error":"#N/A"}},{"$f":"B5&\" \"&B25&D25&E25","v":{"$error":"#N/A"}}]
[{"$f":"A26","v":0},null,null,null,null,"Gruppe B"]
[{"$f":"Turnier!A9","v":0},null,null,null,null,{"$f":"Turnier!K9","v":0}]
[{"$f":"Turnier!A10","v":0},null,null,null,null,{"$f":"Turnier!K10","v":0}]
[{"$f":"Turnier!A11","v":0},null,null,null,null,{"$f":"Turnier!K11","v":0}]
[]
["Gruppenspiele:"]
[1,{"$f":"A8","v":0},null,{"$f":"A9","v":0},null,null,":"]
[2,{"$f":"F8","v":0},null,{"$f":"F9","v":0},null,null,":"]
[1,{"$f":"A7","v":0},null,{"$f":"A8","v":0},null,null,":"]
[2,{"$f":"F7","v":0},null,{"$f":"F8","v":0},null,null,":"]
[1,{"$f":"A9","v":0},null,{"$f":"A7","v":0},null,null,":"]
[2,{"$f":"F9","v":0},null,{"$f":"F7","v":0},null,null,":"]
[]
[null,"Kreuzspiele: "]
[]
["1. SF",null,null,null,null,null,null,null,null,null,":"]
[null,"1. Gruppe A",null,null,"2. Gruppe B"]
[null,null,null,{"$f":"VLOOKUP(C23,$J$15:$K$17,2,FALSE)","v":{"$error":"#N/A"}},null,{"$f":"A23&\" \"&B23&D23&E23","v":{"$error":"#N/A"}}]
["2.SF",null,null,null,null,null,null,null,null,null,":"]
[null,"1. Gruppe B",null,null,"2. Gruppe A"]
[null,null,null,{"$f":"VLOOKUP(C26,$J$15:$K$17,2,FALSE)","v":{"$error":"#N/A"}},null,{"$f":"A26&\" \"&B26&D26&E26","v":{"$error":"#N/A"}}]
[null,"Platzierungsspiele"]
[]
["PL 5",null,null,null,null,null,null,null,null,null,":"]
[null,"3. Gruppe A",null,null,"3. Gruppe B"]
[]
["PL 3",null,null,null,null,null,null,null,null,null,":"]
[null,"Verlierer SF 1",null,null,"Verlierer SF 2"]
[]
["PL 1",null,null,null,null,null,null,null,null,null,":"]
[null,"Sieger SF 1",null,null,"Sieger SF 2"]
[]
[]
[null,"Endstand"]
[]
[1]
[2]
[3]
[4]
[5]
[6]

{"sheet":"Veranstalter","index":2,"n_rows":21,"n_cols":2,"rows_kept":21,"cut":false,"hidden":true,"merged":[]}
[]
[]
[null,"Bad Vöslau"]
[null,"Bisamberg"]
[null,"Groß-Siegharts"]
[null,"Hollabrunn"]
[null,"Langenlebarn"]
[null,"Mank"]
[null,"Melk"]
[null,"Pöchlarn"]
[null,"Oberweiden"]
[null,"Purgstall"]
[null,"Purkersdorf"]
[null,"St. Pölten"]
[null,"Südstadt"]
[null,"Traiskirchen"]
[null,"Waldviertel"]
[null,"Waidhofen"]
[null,"Wr. Neustadt"]
[null,"Ybbs"]
[null,"Zwettl"]

{"sheet":"Vereinskürzel","index":3,"n_rows":78,"n_cols":16,"rows_kept":78,"cut":false,"hidden":true,"merged":[]}
[]
[]
[]
[]
[]
[]
[]
[null,null,null,null,null,null,null,null,null,null,null,null,null,null,"Amstetten","VCA"]
[null,null,null,null,null,null,null,null,null,null,null,null,null,null,"Aschbach","UBA"]
[null,null,null,null,null,null,null,null,null,null,null,null,null,null,"Bad Vöslau","JBV"]
[null,null,null,null,null,null,null,null,null,null,null,null,null,null,"Bisamberg","UBI"]
[null,null,null,null,null,null,null,null,null,null,null,null,null,null,"Böheimkirchen","UBÖ"]
[null,null,null,null,null,null,null,null,null,null,null,null,null,null,"Eschenau","UES"]
[null,null,null,null,null,null,null,null,null,null,null,null,null,null,"Freilos","FRL"]
[null,null,null,null,null,null,null,null,null,"weiblich","w",null,null,null,"Groß-Enzersdorf","VCG"]
[null,null,null,null,null,null,null,null,null,"männlich","m",null,null,null,"Groß-Siegharts","GSH"]
[null,null,null,null,null,null,null,null,null,"mix","x",null,null,null,"Hollabrunn","UHB"]
[null,null,null,null,null,null,null,null,null,null,null,null,null,null,"Kilb","VOR"]
[null,null,null,null,null,null,null,null,null,"LK1",null,null,null,null,"Langenlebarn","ULL"]
[null,null,null,null,null,null,null,null,null,"LK2",null,null,null,null,"Mank","MAN"]
[null,null,null,null,null,null,null,null,null,"LK1&2",null,null,null,null,"Melk","UME"]
[null,null,null,null,null,null,null,null,null,null,null,null,null,null,"Nibelungengau","NLG"]
[null,null,null,null,null,null,null,null,null,"U11x",null,null,null,null,"NÖ Sokol","SSS"]
[null,null,null,null,null,null,null,null,null,"U12x",null,null,null,null,"Oberweiden","UOW"]
[null,null,null,null,null,null,null,null,null,"U13w",null,null,null,null,"Perchtoldsdorf","PTD"]
[null,null,null,null,null,null,null,null,null,"U13m",null,null,null,null,"Purgstall","APU"]
[null,null,null,null,null,null,null,null,null,null,null,null,null,null,"Purkersdorf BRG","GPD"]
[null,null,null,null,null,null,null,null,null,null,null,null,null,null,"Purkersdorf","PKD"]
[null,null,null,null,null,null,null,null,null,null,null,null,null,null,"SMS Scheibbs","SMS"]
[null,null,null,null,null,null,null,null,null,null,null,null,null,null,"Schottwien","BSW"]
[null,null,null,null,null,null,null,null,null,null,null,null,null,null,"Schwechat","SVS"]
[null,null,null,null,null,null,null,null,null,null,null,null,null,null,"St. Pölten","USP"]
[null,null,null,null,null,null,null,null,null,null,null,null,null,null,"Südstadt","USS"]
[null,null,null,null,null,null,null,null,null,null,null,null,null,null,"Ternitz","ATT"]
[null,null,null,null,null,null,null,null,null,null,null,null,null,null,"Traiskirchen","VCT"]
[null,null,null,null,null,null,null,null,null,null,null,null,null,null,"Waldviertel","URW"]
[null,null,null,null,null,null,null,null,null,null,null,null,null,null,"Waidhofen","UWY"]
[null,null,null,null,null,null,null,null,null,null,null,null,null,null,"Wr. Neustadt","UWN"]
[null,null,null,null,null,null,null,null,null,null,null,null,null,null,"Ybbs","UYB"]
[null,null,null,null,null,null,null,null,null,null,null,null,null,null,"Zwettl","UZW"]
[]
[]
[]
[]
[]
[null,null,null,null,null,null,null,null,null,null,null,null,null,null,"Amstetten","VCA"]
[null,null,null,null,null,null,null,null,null,null,null,null,null,null,"Aschbach","UBA"]
[null,null,null,null,null,null,null,null,null,null,null,null,null,null,"Bad Vöslau","JBV"]
[null,null,null,null,null,null,null,null,null,null,null,null,null,null,"Bisamberg","UBI"]
[null,null,null,null,null,null,null,null,null,null,null,null,null,null,"Böheimkirchen","UBÖ"]
[null,null,null,null,null,null,null,null,null,null,null,null,null,null,"Eschenau","UES"]
[null,null,null,null,null,null,null,null,null,null,null,null,null,null,"Freilos","FRL"]
[null,null,null,null,null,null,null,null,null,null,null,null,null,null,"Groß-Enzersdorf","VCG"]
[null,null,null,null,null,null,null,null,null,null,null,null,null,null,"Groß-Siegharts","GSH"]
[null,null,null,null,null,null,null,null,null,null,null,null,null,null,"Hollabrunn","UHB"]
[null,null,null,null,null,null,null,null,null,null,null,null,null,null,"Kilb","VOR"]
[null,null,null,null,null,null,null,null,null,null,null,null,null,null,"Langenlebarn","ULL"]
[null,null,null,null,null,null,null,null,null,null,null,null,null,null,"Mank","MAN"]
[null,null,null,null,null,null,null,null,null,null,null,null,null,null,"Melk","UME"]
[null,null,null,null,null,null,null,null,null,null,null,null,null,null,"Nibelungengau","NLG"]
[null,null,null,null,null,null,null,null,null,null,null,null,null,null,"NÖ Sokol","SSS"]
[null,null,null,null,null,null,null,null,null,null,null,null,null,null,"Oberweiden","UOW"]
[null,null,null,null,null,null,null,null,null,null,null,null,null,null,"Perchtoldsdorf","PTD"]
[null,null,null,null,null,null,null,null,null,null,null,null,null,null,"Purgstall","APU"]
[null,null,null,null,null,null,null,null,null,null,null,null,null,null,"Purkersdorf BRG","GPD"]
[null,null,null,null,null,null,null,null,null,null,null,null,null,null,"Purkersdorf","PKD"]
[null,null,null,null,null,null,null,null,null,null,null,null,null,null,"SMS Scheibbs","SMS"]
[null,null,null,null,null,null,null,null,null,null,null,null,null,null,"Schottwien","BSW"]
[null,null,null,null,null,null,null,null,null,null,null,null,null,null,"Schwechat","SVS"]
[null,null,null,null,null,null,null,null,null,null,null,null,null,null,"St. Pölten","USP"]
[null,null,null,null,null,null,null,null,null,null,null,null,null,null,"Südstadt","USS"]
[null,null,null,null,null,null,null,null,null,null,null,null,null,null,"Ternitz","ATT"]
[null,null,null,null,null,null,null,null,null,null,null,null,null,null,"Traiskirchen","VCT"]
[null,null,null,null,null,null,null,null,null,null,null,null,null,null,"Waldviertel","URW"]
[null,null,null,null,null,null,null,null,null,null,null,null,null,null,"Waidhofen","UWY"]
[null,null,null,null,null,null,null,null,null,null,null,null,null,null,"Wr. Neustadt","UWN"]
[null,null,null,null,null,null,null,null,null,null,null,null,null,null,"Ybbs","UYB"]
[null,null,null,null,null,null,null,null,null,null,null,null,null,null,"Zwettl","UZW"]